[Event "*** Titled Tuesday Blitz"]
[Site "Chess.com"]
[Date "2019.07.02"]
[Round "2"]
[White "JozefKneht"]
[Black "TaykaGM"]
[Result "0-1"]
[WhiteElo "2344"]
[BlackElo "2622"]
[TimeControl "180+2"]
[EndTime "13:22:58 PDT"]
[Termination "TaykaGM won by resignation"]

1. e4 {[%clk 0:03:01.9]} 1... e5 {[%clk 0:03:00.2]} 2. Nf3 {[%clk 0:03:02.6]}
2... Nc6 {[%clk 0:03:01.8]} 3. Bb5 {[%clk 0:03:03.1]} 3... a6 {[%clk 0:03:01.5]}
4. Ba4 {[%clk 0:03:03.6]} 4... b5 {[%clk 0:03:02.4]} 5. Bb3 {[%clk 0:03:03.6]}
5... Na5 {[%clk 0:03:03.9]} 6. O-O {[%clk 0:02:52.7]} 6... d6 {[%clk 0:03:03.8]}
7. Nc3 {[%clk 0:02:41.7]} 7... Bb7 {[%clk 0:02:57.3]} 8. d3 {[%clk 0:02:36.7]}
8... Nf6 {[%clk 0:02:55.7]} 9. Ne2 {[%clk 0:02:35.5]} 9... g6 {[%clk 0:02:49.4]}
10. Bd2 {[%clk 0:02:30.5]} 10... Nxb3 {[%clk 0:02:48.7]} 11. axb3 {[%clk
0:02:32.4]} 11... Bg7 {[%clk 0:02:50]} 12. Ba5 {[%clk 0:02:32.9]} 12... O-O
{[%clk 0:02:50.4]} 13. c4 {[%clk 0:02:34]} 13... Qd7 {[%clk 0:02:44.9]} 14. Nc3
{[%clk 0:02:34.5]} 14... c5 {[%clk 0:02:26]} 15. cxb5 {[%clk 0:02:13.2]} 15...
axb5 {[%clk 0:02:27.9]} 16. b4 {[%clk 0:02:14.1]} 16... Rfc8 {[%clk 0:02:11.8]}
17. bxc5 {[%clk 0:02:05.3]} 17... dxc5 {[%clk 0:02:09]} 18. Nxe5 {[%clk
0:02:03.7]} 18... Qe8 {[%clk 0:02:10.5]} 19. f4 {[%clk 0:02:00.2]} 19... b4
{[%clk 0:02:11.9]} 20. Ne2 {[%clk 0:01:59.2]} 20... Nd7 {[%clk 0:02:00.3]} 21.
Nc4 {[%clk 0:01:58.2]} 21... Qe7 {[%clk 0:01:54]} 22. e5 {[%clk 0:01:56]} 22...
Ra6 {[%clk 0:01:39.6]} 23. d4 {[%clk 0:01:44.7]} 23... cxd4 {[%clk 0:01:33.5]}
24. Nd6 {[%clk 0:01:37.4]} 24... Rxd6 {[%clk 0:01:31.4]} 25. exd6 {[%clk
0:01:37.2]} 25... Qe3+ {[%clk 0:01:23]} 26. Rf2 {[%clk 0:01:35.2]} 26... d3
{[%clk 0:01:22.3]} 27. Ng3 {[%clk 0:01:35.4]} 27... Bxb2 {[%clk 0:01:03.5]} 28.
Nf1 {[%clk 0:01:25.1]} 28... Qc5 {[%clk 0:01:02.4]} 29. Bc7 {[%clk 0:01:18.1]}
29... Bd4 {[%clk 0:00:57.2]} 30. Ra2 {[%clk 0:01:16.4]} 30... Nf6 {[%clk
0:00:55.9]} 31. Qxd3 {[%clk 0:01:08.1]} 31... Ne4 {[%clk 0:00:46.8]} 32. d7
{[%clk 0:01:00.6]} 32... Bxf2+ {[%clk 0:00:46.6]} 33. Kh1 {[%clk 0:01:00.5]}
33... Qxc7 {[%clk 0:00:47.7]} 34. dxc8=Q+ {[%clk 0:00:59.4]} 34... Qxc8 {[%clk
0:00:48.6]} 35. Rc2 {[%clk 0:00:47.9]} 35... Bc5 {[%clk 0:00:47.5]} 36. Nd2
{[%clk 0:00:48.1]} 36... Nf2+ {[%clk 0:00:48.1]} 0-1

[Event "*** Titled Tuesday Blitz"]
[Site "Chess.com"]
[Date "2019.07.02"]
[Round "2"]
[White "akgod"]
[Black "novocane"]
[Result "1-0"]
[WhiteElo "2214"]
[BlackElo "2247"]
[TimeControl "180+2"]
[EndTime "13:22:58 PDT"]
[Termination "akgod won by resignation"]

1. d4 {[%clk 0:03:00.6]} 1... Nf6 {[%clk 0:02:58.4]} 2. c4 {[%clk 0:03:01.9]}
2... e6 {[%clk 0:02:57.2]} 3. Nf3 {[%clk 0:03:03.3]} 3... b6 {[%clk 0:02:55]} 4.
g3 {[%clk 0:03:04.2]} 4... Ba6 {[%clk 0:02:55.5]} 5. b3 {[%clk 0:03:03.4]} 5...
Bb4+ {[%clk 0:02:56.4]} 6. Bd2 {[%clk 0:03:04.3]} 6... Be7 {[%clk 0:02:57.3]} 7.
Bg2 {[%clk 0:03:05.3]} 7... Bb7 {[%clk 0:02:52]} 8. O-O {[%clk 0:03:05.7]} 8...
O-O {[%clk 0:02:45.2]} 9. Bc3 {[%clk 0:03:06.7]} 9... c5 {[%clk 0:02:43.5]} 10.
d5 {[%clk 0:03:05.6]} 10... exd5 {[%clk 0:02:39.9]} 11. Nh4 {[%clk 0:03:05.9]}
11... Ne4 {[%clk 0:02:32.3]} 12. Nf5 {[%clk 0:02:52.5]} 12... d4 {[%clk
0:02:24]} 13. Bb2 {[%clk 0:02:46.1]} 13... Bc6 {[%clk 0:02:20.2]} 14. e3 {[%clk
0:02:42.5]} 14... g6 {[%clk 0:01:58.5]} 15. Nxe7+ {[%clk 0:02:41.4]} 15... Qxe7
{[%clk 0:01:59.3]} 16. exd4 {[%clk 0:02:42.8]} 16... f5 {[%clk 0:01:41.7]} 17.
d5 {[%clk 0:02:24.3]} 17... Bb7 {[%clk 0:01:42.4]} 18. Re1 {[%clk 0:02:20.1]}
18... Qf7 {[%clk 0:01:18.2]} 19. Nd2 {[%clk 0:02:07.3]} 19... Nf6 {[%clk
0:01:03.5]} 20. Nf3 {[%clk 0:02:04.9]} 20... d6 {[%clk 0:01:04.3]} 21. Ng5
{[%clk 0:02:05]} 21... Qd7 {[%clk 0:01:00.5]} 22. Ne6 {[%clk 0:02:05.1]} 22...
Rf7 {[%clk 0:00:58.7]} 23. Qd2 {[%clk 0:01:58.7]} 23... Na6 {[%clk 0:00:57.3]}
24. Qg5 {[%clk 0:01:53.8]} 24... Ng4 {[%clk 0:00:40.4]} 25. Qd2 {[%clk
0:01:01.9]} 25... Re8 {[%clk 0:00:33.8]} 26. h3 {[%clk 0:01:02.1]} 26... Ne5
{[%clk 0:00:34.1]} 27. f4 {[%clk 0:01:02.7]} 27... Nc6 {[%clk 0:00:10.9]} 28.
dxc6 {[%clk 0:00:56]} 1-0

[Event "*** Titled Tuesday Blitz"]
[Site "Chess.com"]
[Date "2019.07.02"]
[Round "2"]
[White "monalize"]
[Black "josiwales"]
[Result "1/2-1/2"]
[WhiteElo "2329"]
[BlackElo "2462"]
[TimeControl "180+2"]
[EndTime "13:23:04 PDT"]
[Termination "Game drawn by agreement"]

1. e4 {[%clk 0:03:01.9]} 1... c5 {[%clk 0:03:00.8]} 2. Nf3 {[%clk 0:03:02.7]}
2... Nc6 {[%clk 0:03:02.2]} 3. d4 {[%clk 0:03:03.4]} 3... cxd4 {[%clk
0:03:03.6]} 4. Nxd4 {[%clk 0:03:04.3]} 4... g6 {[%clk 0:03:05.5]} 5. Nc3 {[%clk
0:03:01.9]} 5... Bg7 {[%clk 0:03:06.8]} 6. Be3 {[%clk 0:03:02.9]} 6... Nf6
{[%clk 0:03:08.5]} 7. Bc4 {[%clk 0:03:02.9]} 7... O-O {[%clk 0:03:10.1]} 8. Bb3
{[%clk 0:03:03.5]} 8... Re8 {[%clk 0:03:11.7]} 9. O-O {[%clk 0:02:47.5]} 9... d6
{[%clk 0:03:12.1]} 10. h3 {[%clk 0:02:43.4]} 10... Na5 {[%clk 0:03:12.9]} 11.
Qd2 {[%clk 0:02:27.5]} 11... Nxb3 {[%clk 0:03:11.7]} 12. axb3 {[%clk 0:02:24.9]}
12... b6 {[%clk 0:03:13.6]} 13. Bh6 {[%clk 0:02:13.4]} 13... Bb7 {[%clk
0:03:11.7]} 14. Bxg7 {[%clk 0:02:12.3]} 14... Kxg7 {[%clk 0:03:13.6]} 15. Rfe1
{[%clk 0:01:58]} 15... Qd7 {[%clk 0:03:14.4]} 16. Rad1 {[%clk 0:01:55.3]} 16...
a6 {[%clk 0:03:12.7]} 17. Qg5 {[%clk 0:01:40.6]} 17... h6 {[%clk 0:03:11]} 18.
Qg3 {[%clk 0:01:36.6]} 18... Kh7 {[%clk 0:03:07.3]} 19. e5 {[%clk 0:01:12.3]}
19... dxe5 {[%clk 0:03:06.9]} 20. Qxe5 {[%clk 0:01:12.7]} 20... Rad8 {[%clk
0:03:00.4]} 21. Rd3 {[%clk 0:01:12.6]} 21... b5 {[%clk 0:02:54.4]} 22. b4 {[%clk
0:01:00.9]} 22... Nd5 {[%clk 0:02:51.1]} 23. Nxd5 {[%clk 0:00:59]} 23... Qxd5
{[%clk 0:02:51.3]} 24. Qxd5 {[%clk 0:00:58.9]} 24... Rxd5 {[%clk 0:02:53.1]} 25.
c3 {[%clk 0:00:55.2]} 25... e5 {[%clk 0:02:53.8]} 26. Rde3 {[%clk 0:00:55.7]}
26... f6 {[%clk 0:02:46.7]} 27. f4 {[%clk 0:00:50.3]} 27... Kg7 {[%clk
0:02:31.1]} 28. Nb3 {[%clk 0:00:43.9]} 28... Bc6 {[%clk 0:02:19.3]} 29. R3e2
{[%clk 0:00:34.3]} 29... Kf7 {[%clk 0:02:11.6]} 30. Nc5 {[%clk 0:00:34.1]} 30...
a5 {[%clk 0:02:12.1]} 31. fxe5 {[%clk 0:00:29.1]} 31... Rexe5 {[%clk 0:02:11.8]}
32. Rxe5 {[%clk 0:00:29.4]} 32... fxe5 {[%clk 0:02:13.7]} 33. Re2 {[%clk
0:00:18]} 33... axb4 {[%clk 0:02:13.6]} 34. cxb4 {[%clk 0:00:18.6]} 34... Rd4
{[%clk 0:02:14.6]} 35. Rxe5 {[%clk 0:00:18.5]} 35... Rd2 {[%clk 0:02:09.4]} 36.
Re6 {[%clk 0:00:19]} 36... Rxg2+ {[%clk 0:02:09.2]} 37. Kf1 {[%clk 0:00:19.6]}
37... Bd5 {[%clk 0:02:06.4]} 38. Rd6 {[%clk 0:00:20]} 38... Ba8 {[%clk
0:01:58.5]} 39. Ra6 {[%clk 0:00:19.2]} 39... Bd5 {[%clk 0:01:57.8]} 40. Rd6
{[%clk 0:00:19.4]} 40... Bf3 {[%clk 0:01:56.3]} 41. Rd3 {[%clk 0:00:18.6]} 41...
Ba8 {[%clk 0:01:53]} 42. Rd8 {[%clk 0:00:15.9]} 42... Bc6 {[%clk 0:01:52.1]} 43.
Rd6 {[%clk 0:00:16.2]} 43... Bf3 {[%clk 0:01:49.4]} 44. Rd3 {[%clk 0:00:15.6]}
44... Bc6 {[%clk 0:01:49.5]} 45. Rd6 {[%clk 0:00:14.4]} 1/2-1/2

[Event "*** Titled Tuesday Blitz"]
[Site "Chess.com"]
[Date "2019.07.02"]
[Round "2"]
[White "Siniauski"]
[Black "KarstenHansch"]
[Result "1/2-1/2"]
[WhiteElo "2441"]
[BlackElo "2429"]
[TimeControl "180+2"]
[EndTime "13:23:07 PDT"]
[Termination "Game drawn by repetition"]

1. e4 {[%clk 0:02:58.2]} 1... c5 {[%clk 0:03:00.9]} 2. Nf3 {[%clk 0:02:58.8]}
2... d6 {[%clk 0:03:02.5]} 3. Bb5+ {[%clk 0:02:59.3]} 3... Bd7 {[%clk
0:03:03.2]} 4. Bxd7+ {[%clk 0:02:59.8]} 4... Qxd7 {[%clk 0:03:04.4]} 5. c4
{[%clk 0:03:00.2]} 5... Nc6 {[%clk 0:03:05.2]} 6. Nc3 {[%clk 0:03:01]} 6... g6
{[%clk 0:03:06.2]} 7. O-O {[%clk 0:03:01.6]} 7... Bg7 {[%clk 0:03:07.2]} 8. d3
{[%clk 0:03:01.1]} 8... e6 {[%clk 0:03:07.2]} 9. Be3 {[%clk 0:03:00.8]} 9... Nd4
{[%clk 0:03:07.4]} 10. Bxd4 {[%clk 0:02:59.3]} 10... cxd4 {[%clk 0:03:08.2]} 11.
Ne2 {[%clk 0:03:01]} 11... e5 {[%clk 0:03:09.3]} 12. b4 {[%clk 0:03:01.7]} 12...
Ne7 {[%clk 0:03:08.1]} 13. Qb3 {[%clk 0:03:02.3]} 13... O-O {[%clk 0:03:06.1]}
14. Rac1 {[%clk 0:03:02.9]} 14... Kh8 {[%clk 0:03:02.3]} 15. c5 {[%clk
0:03:01.3]} 15... d5 {[%clk 0:03:02.7]} 16. exd5 {[%clk 0:03:01]} 16... Nxd5
{[%clk 0:03:02.9]} 17. b5 {[%clk 0:02:57.5]} 17... Rfc8 {[%clk 0:02:55.5]} 18.
Rc4 {[%clk 0:02:53.5]} 18... a6 {[%clk 0:02:46.5]} 19. a4 {[%clk 0:02:39.5]}
19... axb5 {[%clk 0:02:35.6]} 20. axb5 {[%clk 0:02:39.4]} 20... Nc3 {[%clk
0:02:36.9]} 21. Nxc3 {[%clk 0:02:32.9]} 21... dxc3 {[%clk 0:02:34]} 22. Rxc3
{[%clk 0:02:30.5]} 22... e4 {[%clk 0:02:31.8]} 23. dxe4 {[%clk 0:02:22.5]} 23...
Bxc3 {[%clk 0:02:32.1]} 24. Qxc3+ {[%clk 0:02:20.1]} 24... Kg8 {[%clk
0:02:33.4]} 25. Ne5 {[%clk 0:02:11.5]} 25... Qxb5 {[%clk 0:02:28.2]} 26. Ng4
{[%clk 0:02:10.1]} 26... Qxc5 {[%clk 0:02:11.9]} 27. Qf6 {[%clk 0:01:59.2]}
27... Qf8 {[%clk 0:02:08]} 28. Qh4 {[%clk 0:01:46.8]} 28... h5 {[%clk
0:02:00.2]} 29. Nf6+ {[%clk 0:01:47]} 29... Kg7 {[%clk 0:02:00.9]} 30. Qg5
{[%clk 0:01:46.2]} 30... Kh8 {[%clk 0:01:40.6]} 31. e5 {[%clk 0:01:38]} 31...
Ra5 {[%clk 0:01:34.1]} 32. g4 {[%clk 0:01:18.2]} 32... Rcc5 {[%clk 0:01:08.1]}
33. Nd7 {[%clk 0:01:11.6]} 33... Qg7 {[%clk 0:01:04.6]} 34. Qd8+ {[%clk
0:01:01.6]} 34... Qg8 {[%clk 0:01:00.2]} 35. Qf6+ {[%clk 0:00:59.6]} 35... Qg7
{[%clk 0:01:00.9]} 36. Qd8+ {[%clk 0:01:00.5]} 36... Qg8 {[%clk 0:01:01.9]} 37.
Qf6+ {[%clk 0:00:56.5]} 37... Qg7 {[%clk 0:01:02.9]} 38. Qd8+ {[%clk 0:00:43.3]}
1/2-1/2

[Event "*** Titled Tuesday Blitz"]
[Site "Chess.com"]
[Date "2019.07.02"]
[Round "2"]
[White "Jospem"]
[Black "lavr92"]
[Result "1-0"]
[WhiteElo "2884"]
[BlackElo "2618"]
[TimeControl "180+2"]
[EndTime "13:23:14 PDT"]
[Termination "Jospem won by resignation"]

1. c4 {[%clk 0:03:01.9]} 1... c6 {[%clk 0:03:00.4]} 2. Nf3 {[%clk 0:03:03.1]}
2... d5 {[%clk 0:03:00.8]} 3. g3 {[%clk 0:03:04.6]} 3... Nf6 {[%clk 0:02:58.9]}
4. Bg2 {[%clk 0:03:05.7]} 4... dxc4 {[%clk 0:02:58.1]} 5. O-O {[%clk 0:03:06.4]}
5... Nbd7 {[%clk 0:02:59.2]} 6. a4 {[%clk 0:03:07.1]} 6... e5 {[%clk 0:02:55.8]}
7. Qc2 {[%clk 0:03:00.2]} 7... Bd6 {[%clk 0:02:41.3]} 8. Qxc4 {[%clk 0:02:56.1]}
8... O-O {[%clk 0:02:40.1]} 9. d3 {[%clk 0:02:56.5]} 9... a5 {[%clk 0:02:21.9]}
10. Qc2 {[%clk 0:02:46.8]} 10... Re8 {[%clk 0:02:17]} 11. Nbd2 {[%clk
0:02:46.4]} 11... Nd5 {[%clk 0:02:13.6]} 12. Nc4 {[%clk 0:02:47.1]} 12... Nb4
{[%clk 0:02:09.6]} 13. Qd1 {[%clk 0:02:48]} 13... Bc7 {[%clk 0:01:50.8]} 14. b3
{[%clk 0:02:42.2]} 14... f6 {[%clk 0:01:47]} 15. Be3 {[%clk 0:02:41.3]} 15...
Nb6 {[%clk 0:01:38.4]} 16. Rc1 {[%clk 0:02:39]} 16... Be6 {[%clk 0:01:36.3]} 17.
Bd2 {[%clk 0:02:21.7]} 17... N6d5 {[%clk 0:01:33.6]} 18. Kh1 {[%clk 0:02:06.3]}
18... Qd7 {[%clk 0:01:32.5]} 19. Be1 {[%clk 0:02:05.8]} 19... Bh3 {[%clk
0:01:28.1]} 20. Rg1 {[%clk 0:01:52.6]} 20... Bxg2+ {[%clk 0:01:24.2]} 21. Rxg2
{[%clk 0:01:54.5]} 21... Rad8 {[%clk 0:01:25.1]} 22. Rg1 {[%clk 0:01:51.4]}
22... e4 {[%clk 0:01:21.5]} 23. dxe4 {[%clk 0:01:51.6]} 23... Rxe4 {[%clk
0:01:22.5]} 24. e3 {[%clk 0:01:50.7]} 24... Qh3 {[%clk 0:01:08.8]} 25. Qe2
{[%clk 0:01:46]} 25... Ree8 {[%clk 0:00:42.4]} 26. Nh4 {[%clk 0:01:30.2]} 26...
Ne7 {[%clk 0:00:35.6]} 27. Bxb4 {[%clk 0:01:23]} 27... axb4 {[%clk 0:00:35.8]}
28. Qf3 {[%clk 0:01:24.2]} 28... Qe6 {[%clk 0:00:33.3]} 29. Rcd1 {[%clk
0:01:11.9]} 29... Nd5 {[%clk 0:00:29.3]} 30. Nf5 {[%clk 0:01:08.9]} 30... g6
{[%clk 0:00:27.3]} 31. Nd4 {[%clk 0:00:50.9]} 31... Qf7 {[%clk 0:00:28]} 32. Ne2
{[%clk 0:00:49.5]} 32... Kg7 {[%clk 0:00:26.9]} 33. e4 {[%clk 0:00:49.5]} 33...
Nb6 {[%clk 0:00:23.5]} 34. Ne3 {[%clk 0:00:47.7]} 34... Qxb3 {[%clk 0:00:23.5]}
35. Nf5+ {[%clk 0:00:48.3]} 1-0

[Event "*** Titled Tuesday Blitz"]
[Site "Chess.com"]
[Date "2019.07.02"]
[Round "2"]
[White "Ali_rastbod"]
[Black "Samuray111"]
[Result "1-0"]
[WhiteElo "2761"]
[BlackElo "2557"]
[TimeControl "180+2"]
[EndTime "13:23:20 PDT"]
[Termination "Ali_rastbod won by resignation"]

1. c4 {[%clk 0:03:01.9]} 1... g6 {[%clk 0:03:00]} 2. d4 {[%clk 0:02:54.8]} 2...
Bg7 {[%clk 0:03:00.4]} 3. Nf3 {[%clk 0:02:56.3]} 3... c5 {[%clk 0:02:54.7]} 4.
Nc3 {[%clk 0:02:51.9]} 4... cxd4 {[%clk 0:02:54.7]} 5. Nxd4 {[%clk 0:02:53.8]}
5... Nc6 {[%clk 0:02:55.9]} 6. Nxc6 {[%clk 0:02:54.6]} 6... bxc6 {[%clk
0:02:56.5]} 7. g3 {[%clk 0:02:55.7]} 7... Qa5 {[%clk 0:02:36.4]} 8. Bd2 {[%clk
0:02:47.6]} 8... Qc5 {[%clk 0:02:35.6]} 9. b3 {[%clk 0:02:42.9]} 9... d5 {[%clk
0:02:26.2]} 10. Bg2 {[%clk 0:02:40.7]} 10... Nf6 {[%clk 0:02:26.7]} 11. O-O
{[%clk 0:02:39.8]} 11... O-O {[%clk 0:02:23.7]} 12. Rc1 {[%clk 0:02:09.1]} 12...
d4 {[%clk 0:02:23.1]} 13. Na4 {[%clk 0:02:07.2]} 13... Qd6 {[%clk 0:02:20.2]}
14. e3 {[%clk 0:02:03.1]} 14... Bg4 {[%clk 0:02:13.7]} 15. f3 {[%clk 0:02:04]}
15... Bf5 {[%clk 0:02:13.1]} 16. e4 {[%clk 0:02:04.2]} 16... Bd7 {[%clk
0:02:11.8]} 17. Qe1 {[%clk 0:01:52.5]} 17... Qc7 {[%clk 0:01:40.1]} 18. Ba5
{[%clk 0:01:44.2]} 18... Qc8 {[%clk 0:01:38.3]} 19. e5 {[%clk 0:01:45.1]} 19...
Ne8 {[%clk 0:01:39.2]} 20. Nc5 {[%clk 0:01:41.7]} 20... Nc7 {[%clk 0:01:36.4]}
21. Rd1 {[%clk 0:01:38.9]} 21... Ne6 {[%clk 0:01:28]} 22. Nxe6 {[%clk
0:01:39.9]} 22... Bxe6 {[%clk 0:01:29.9]} 23. Rxd4 {[%clk 0:01:41.5]} 23... Qa6
{[%clk 0:01:29.7]} 24. f4 {[%clk 0:01:35.6]} 24... Rac8 {[%clk 0:01:29.5]} 25.
Qc3 {[%clk 0:01:30.4]} 25... f6 {[%clk 0:01:29.9]} 26. Re1 {[%clk 0:01:18.6]}
26... fxe5 {[%clk 0:01:30.7]} 27. fxe5 {[%clk 0:01:20.5]} 27... Rf5 {[%clk
0:00:55.2]} 28. Rde4 {[%clk 0:01:20]} 28... Rh5 {[%clk 0:00:54.6]} 29. a4 {[%clk
0:01:18.2]} 29... Rf8 {[%clk 0:00:52.9]} 30. h3 {[%clk 0:01:05.8]} 30... Rff5
{[%clk 0:00:52.5]} 31. g4 {[%clk 0:01:05.1]} 31... Rxe5 {[%clk 0:00:53.4]} 32.
Rxe5 {[%clk 0:01:04.1]} 32... Rxe5 {[%clk 0:00:54.1]} 33. Rxe5 {[%clk
0:01:05.4]} 33... c5 {[%clk 0:00:49.7]} 34. Qe3 {[%clk 0:01:03.8]} 34... Bxe5
{[%clk 0:00:49.6]} 35. Qxe5 {[%clk 0:01:05.7]} 35... Qxa5 {[%clk 0:00:50.9]} 36.
Qxe6+ {[%clk 0:01:07]} 36... Kf8 {[%clk 0:00:52.8]} 37. Bd5 {[%clk 0:00:53.9]}
37... Kg7 {[%clk 0:00:49.7]} 38. g5 {[%clk 0:00:53.1]} 1-0

[Event "*** Titled Tuesday Blitz"]
[Site "Chess.com"]
[Date "2019.07.02"]
[Round "2"]
[White "ENEASZ"]
[Black "TheCavemanChesss"]
[Result "0-1"]
[WhiteElo "2505"]
[BlackElo "2412"]
[TimeControl "180+2"]
[EndTime "13:23:23 PDT"]
[Termination "TheCavemanChesss won by resignation"]

1. e4 {[%clk 0:03:01.9]} 1... c5 {[%clk 0:03:00.1]} 2. c3 {[%clk 0:03:02.6]}
2... e6 {[%clk 0:03:00.8]} 3. d4 {[%clk 0:03:03.1]} 3... d5 {[%clk 0:03:02.5]}
4. exd5 {[%clk 0:03:04]} 4... exd5 {[%clk 0:03:04.4]} 5. Nf3 {[%clk 0:03:05.6]}
5... Nf6 {[%clk 0:03:05.9]} 6. Bb5+ {[%clk 0:03:05.7]} 6... Nc6 {[%clk
0:03:04.3]} 7. O-O {[%clk 0:03:06.3]} 7... Be7 {[%clk 0:03:04.4]} 8. dxc5 {[%clk
0:03:06.5]} 8... Bxc5 {[%clk 0:03:00]} 9. Nbd2 {[%clk 0:03:05.7]} 9... O-O
{[%clk 0:03:00.8]} 10. Nb3 {[%clk 0:03:06.7]} 10... Bd6 {[%clk 0:03:02.2]} 11.
Nbd4 {[%clk 0:03:06.1]} 11... Qc7 {[%clk 0:02:49.5]} 12. h3 {[%clk 0:03:05.8]}
12... h6 {[%clk 0:02:41.8]} 13. Re1 {[%clk 0:03:06.1]} 13... Bd7 {[%clk
0:02:42.2]} 14. Nxc6 {[%clk 0:03:01.3]} 14... bxc6 {[%clk 0:02:41.9]} 15. Bd3
{[%clk 0:03:02.2]} 15... Rfe8 {[%clk 0:02:37.5]} 16. Be3 {[%clk 0:03:00.3]}
16... c5 {[%clk 0:02:35.2]} 17. Bc2 {[%clk 0:03:00.7]} 17... a5 {[%clk
0:02:32.6]} 18. Qd3 {[%clk 0:03:01.1]} 18... Rab8 {[%clk 0:02:32.3]} 19. Rab1
{[%clk 0:03:02]} 19... Bc6 {[%clk 0:01:59.1]} 20. Nh4 {[%clk 0:02:46.1]} 20...
Ne4 {[%clk 0:01:53.7]} 21. Nf5 {[%clk 0:02:42.7]} 21... Bh2+ {[%clk 0:01:50.6]}
22. Kh1 {[%clk 0:02:43.1]} 22... Qe5 {[%clk 0:01:37.7]} 23. Nh4 {[%clk
0:02:34.5]} 23... Bf4 {[%clk 0:01:09.2]} 24. Nf3 {[%clk 0:02:34.6]} 24... Qf6
{[%clk 0:01:09.2]} 25. Kg1 {[%clk 0:02:26.5]} 25... Rbd8 {[%clk 0:01:07.9]} 26.
Rbd1 {[%clk 0:02:26.5]} 26... g6 {[%clk 0:00:57.5]} 27. Bb1 {[%clk 0:02:22]}
27... Ba8 {[%clk 0:00:34.7]} 28. Bxf4 {[%clk 0:02:15.9]} 28... Qxf4 {[%clk
0:00:35.6]} 29. Qe3 {[%clk 0:02:17.6]} 29... Qxe3 {[%clk 0:00:25.3]} 30. Rxe3
{[%clk 0:02:19.5]} 30... Nd6 {[%clk 0:00:23.1]} 31. Rxe8+ {[%clk 0:02:11.6]}
31... Rxe8 {[%clk 0:00:25]} 32. Bd3 {[%clk 0:02:13.2]} 32... Kg7 {[%clk
0:00:25.2]} 33. Kf1 {[%clk 0:02:11.7]} 33... Rb8 {[%clk 0:00:26.4]} 34. Rd2
{[%clk 0:02:10.1]} 34... Kf6 {[%clk 0:00:28]} 35. Ke1 {[%clk 0:02:03.3]} 35...
Ne4 {[%clk 0:00:29.3]} 36. Bxe4 {[%clk 0:02:01.7]} 36... dxe4 {[%clk 0:00:31.2]}
37. Nh2 {[%clk 0:02:01.6]} 37... h5 {[%clk 0:00:29.6]} 38. h4 {[%clk 0:02:02.5]}
38... Ke5 {[%clk 0:00:27.9]} 39. Ke2 {[%clk 0:02:00.2]} 39... Bc6 {[%clk
0:00:28.3]} 40. Ke3 {[%clk 0:02:01]} 40... f5 {[%clk 0:00:27.2]} 41. g3 {[%clk
0:01:59.1]} 41... Bd5 {[%clk 0:00:26.8]} 42. a3 {[%clk 0:01:55.7]} 42... Rb3
{[%clk 0:00:21.4]} 43. f4+ {[%clk 0:01:52.2]} 43... exf3 {[%clk 0:00:22.6]} 44.
Nxf3+ {[%clk 0:01:52.9]} 44... Bxf3 {[%clk 0:00:23.8]} 45. Kxf3 {[%clk
0:01:54.8]} 45... Rb7 {[%clk 0:00:24.7]} 46. Re2+ {[%clk 0:01:55.6]} 46... Kf6
{[%clk 0:00:26.2]} 47. Kf4 {[%clk 0:01:57.2]} 47... Rd7 {[%clk 0:00:26.7]} 48.
a4 {[%clk 0:01:51.7]} 48... Rd1 {[%clk 0:00:24.8]} 49. Re8 {[%clk 0:01:45.8]}
49... Rf1+ {[%clk 0:00:25.5]} 50. Ke3 {[%clk 0:01:46.6]} 50... Re1+ {[%clk
0:00:27.4]} 0-1

[Event "*** Titled Tuesday Blitz"]
[Site "Chess.com"]
[Date "2019.07.02"]
[Round "2"]
[White "Grischuk"]
[Black "adriangschnitzer"]
[Result "1-0"]
[WhiteElo "3090"]
[BlackElo "2473"]
[TimeControl "180+2"]
[EndTime "13:23:29 PDT"]
[Termination "Grischuk won by resignation"]

1. e4 {[%clk 0:03:01.9]} 1... c5 {[%clk 0:02:58.9]} 2. Nf3 {[%clk 0:03:03.2]}
2... Nc6 {[%clk 0:03:00.1]} 3. Bb5 {[%clk 0:03:04.2]} 3... g6 {[%clk 0:03:00.7]}
4. Bxc6 {[%clk 0:03:05]} 4... bxc6 {[%clk 0:03:02.6]} 5. d4 {[%clk 0:03:05.2]}
5... Bg7 {[%clk 0:03:02.2]} 6. dxc5 {[%clk 0:03:04.4]} 6... Qa5+ {[%clk
0:02:59.8]} 7. Nbd2 {[%clk 0:02:52.6]} 7... Ba6 {[%clk 0:02:48.8]} 8. a3 {[%clk
0:02:45.5]} 8... Qxc5 {[%clk 0:02:47.7]} 9. b4 {[%clk 0:02:41.4]} 9... Qb6
{[%clk 0:02:29.2]} 10. Rb1 {[%clk 0:02:41.7]} 10... d5 {[%clk 0:02:26.7]} 11. b5
{[%clk 0:01:59.8]} 11... Bxb5 {[%clk 0:02:17.9]} 12. exd5 {[%clk 0:01:45.6]}
12... cxd5 {[%clk 0:02:14.2]} 13. c4 {[%clk 0:01:38.2]} 13... Qe6+ {[%clk
0:02:08.3]} 14. Kf1 {[%clk 0:01:32]} 14... Bxc4+ {[%clk 0:02:09]} 15. Nxc4
{[%clk 0:01:33]} 15... dxc4 {[%clk 0:02:10.9]} 16. Qa4+ {[%clk 0:01:21]} 16...
Qd7 {[%clk 0:02:02.7]} 17. Qxd7+ {[%clk 0:01:17.8]} 17... Kxd7 {[%clk
0:02:04.6]} 18. Ke2 {[%clk 0:01:19.5]} 18... e5 {[%clk 0:01:44.3]} 19. Rb7+
{[%clk 0:01:16.9]} 19... Kc6 {[%clk 0:01:44.4]} 20. Rxf7 {[%clk 0:01:17.6]}
20... Bf6 {[%clk 0:01:43.7]} 21. Be3 {[%clk 0:01:11.3]} 21... e4 {[%clk
0:01:33.8]} 22. Nd2 {[%clk 0:01:11.9]} 22... Kd5 {[%clk 0:01:09.3]} 23. Rd1
{[%clk 0:01:11.7]} 23... Ke6 {[%clk 0:01:09.2]} 24. Rc7 {[%clk 0:01:11]} 24...
c3 {[%clk 0:01:03.5]} 25. Nxe4 {[%clk 0:01:11.3]} 25... Be5 {[%clk 0:00:57.8]}
26. Rc6+ {[%clk 0:01:04.6]} 26... Kf7 {[%clk 0:00:47.8]} 27. Rd7+ {[%clk
0:01:01.1]} 27... Ne7 {[%clk 0:00:45.2]} 28. Bg5 {[%clk 0:00:50.5]} 28... Rhe8
{[%clk 0:00:43.9]} 29. f4 {[%clk 0:00:40.6]} 29... Bh8 {[%clk 0:00:24]} 30. Rcc7
{[%clk 0:00:35]} 30... h6 {[%clk 0:00:19.8]} 31. Rxe7+ {[%clk 0:00:33.2]} 31...
Rxe7 {[%clk 0:00:20.4]} 32. Bxe7 {[%clk 0:00:35.1]} 32... Ke6 {[%clk 0:00:20.3]}
33. Bb4 {[%clk 0:00:33.9]} 33... Kd5 {[%clk 0:00:19.7]} 34. Nxc3+ {[%clk
0:00:34.4]} 34... Bxc3 {[%clk 0:00:20.8]} 35. Rxc3 {[%clk 0:00:35.6]} 1-0